Workbook

Sheet Export Pop pour part d'offre (hidden)
B1: Offre croisée
B2: Période : du 01 /01 /2017 au 31 /12 /2018
B3: Chaînes : NRJHI NRJ12 CH25
B4: Jours : Lundi, Mardi, Mercredi, Jeudi, Vendredi, Samedi, Dimanche
A6: Total | B6: Total | C6: NRJ 12 | D6: CHERIE 25 | E6: NRJ Hits
A7: Total | B7: GRP moy -H100000 | C7: 0.263799 | D7: 0.200877 | F7: =C7/SUM($C7:$E7) -> 57% | G7: =D7/SUM($C7:$E7) -> 43% | H7: 0% | I7: =+SUM(F7:H7) -> 100%
A8: Total | B8: GRP moy E49EF | C8: 0.262724 | D8: 0.106472 | E8: 0.047670 | F8: =C8/SUM($C8:$E8) -> 63% | G8: =D8/SUM($C8:$E8) -> 26% | H8: =E8/SUM($C8:$E8) -> 11% | I8: =+SUM(F8:H8) -> 100%
A9: Total | B9: GRP moy ACTIFS | C9: 0.263089 | D9: 0.152485 | E9: 0.033041 | F9: 59% | G9: 34% | H9: 7% | I9: 100%
A10: Total | B10: GRP moy CSP+ | C10: 0.202547 | D10: 0.108094 | E10: 0.033731 | F10: 59% | G10: 31% | H10: 10% | I10: 100%
A11: Total | B11: GRP moy ENF11A14 | C11: 0.187130 | D11: 0.054059 | E11: 0.019980 | F11: 72% | G11: 21% | H11: 8% | I11: 100%
A12: Total | B12: GRP moy ENF4A10 | C12: 0.081763 | D12: 0.032340 | E12: 0.034757 | F12: 55% | G12: 22% | H12: 23% | I12: 100%
A13: Total | B13: GRP moy ENF4A14 | C13: 0.120752 | D13: 0.040405 | E13: 0.029199 | F13: 63% | G13: 21% | H13: 15% | I13: 100%
A14: Total | B14: GRP moy ENF4A14C | C14: 0.120665 | D14: 0.040357 | F14: 75% | G14: 25% | H14: 0% | I14: 100%
A15: Total | B15: GRP moy ENS1124 | C15: 0.211987 | D15: 0.066462 | E15: 0.028078 | F15: 69% | G15: 22% | H15: 9% | I15: 100%
A16: Total | B16: GRP moy ENS15 | C16: 0.249585 | D16: 0.191993 | E16: 0.027942 | F16: 53% | G16: 41% | H16: 6% | I16: 100%
A17: Total | B17: GRP moy ENS15-24 | C17: 0.223050 | D17: 0.071977 | E17: 0.031766 | F17: 68% | G17: 22% | H17: 10% | I17: 100%
A18: Total | B18: GRP moy ENS<35 | C18: 0.281354 | D18: 0.080502 | E18: 0.044414 | F18: 69% | G18: 20% | H18: 11% | I18: 100%
A19: Total | B19: GRP moy ENS<50 | C19: 0.289879 | D19: 0.121792 | E19: 0.042117 | F19: 64% | G19: 27% | H19: 9% | I19: 100%
A20: Total | B20: GRP moy ENS1559 | C20: 0.286529 | D20: 0.155642 | E20: 0.038373 | F20: 60% | G20: 32% | H20: 8% | I20: 100%
A21: Total | B21: GRP moy ENS25-34 | C21: 0.340321 | D21: 0.089225 | E21: 0.057525 | F21: 70% | G21: 18% | H21: 12% | I21: 100%
A22: Total | B22: GRP moy ENS2549 | C22: 0.314949 | D22: 0.140628 | E22: 0.046035 | F22: 63% | G22: 28% | H22: 9% | I22: 100%
A23: Total | B23: GRP moy ENS2549C | C23: 0.314727 | D23: 0.140329 | F23: 69% | G23: 31% | H23: 0% | I23: 100%
A24: Total | B24: GRP moy ENS2559B | C24: 0.302950 | D24: 0.177290 | F24: 63% | G24: 37% | H24: 0% | I24: 100%
A25: Total | B25: GRP moy ENS2559 | C25: 0.298942 | D25: 0.176124 | E25: 0.040107 | F25: 58% | G25: 34% | H25: 8% | I25: 100%
A26: Total | B26: GRP moy ENS3549 | C26: 0.299851 | D26: 0.170066 | E26: 0.039441 | F26: 59% | G26: 33% | H26: 8% | I26: 100%
A27: Total | B27: GRP moy ENS3559 | C27: 0.290102 | D27: 0.207525 | E27: 0.035888 | F27: 54% | G27: 39% | H27: 7% | I27: 100%
A28: Total | B28: GRP moy ENS4 | C28: 0.230765 | D28: 0.170102 | E28: 0.028121 | F28: 54% | G28: 40% | H28: 7% | I28: 100%
A29: Total | B29: GRP moy ENS5059 | C29: 0.276953 | D29: 0.262038 | F29: 51% | G29: 49% | H29: 0% | I29: 100%
A30: Total | B30: GRP moy ENS25+ | C30: 0.253850 | D30: 0.211295 | E30: 0.027323 | F30: 52% | G30: 43% | H30: 6% | I30: 100%
A31: Total | B31: GRP moy 35ANS+ | C31: 0.237475 | D31: 0.234389 | E31: 0.021726 | F31: 48% | G31: 47% | H31: 4% | I31: 100%
A32: Total | B32: GRP moy 50ANS+ | C32: 0.207373 | D32: 0.265382 | E32: 0.013243 | F32: 43% | G32: 55% | H32: 3% | I32: 100%
A33: Total | B33: GRP moy ENS>60 | C33: 0.173019 | D33: 0.267371 | E33: 0.004634 | F33: 39% | G33: 60% | H33: 1% | I33: 100%
A34: Total | B34: GRP moy Fm-ef-6a | C34: 0.330003 | D34: 0.109572 | F34: 75% | G34: 25% | H34: 0% | I34: 100%
A35: Total | B35: GRP moy F2549CS+ | C35: 0.234899 | D35: 0.104752 | E35: 0.046292 | F35: 61% | G35: 27% | H35: 12% | I35: 100%
A36: Total | B36: GRP moy FEM2549 | C36: 0.352720 | D36: 0.172228 | E36: 0.055405 | F36: 61% | G36: 30% | H36: 10% | I36: 100%
A37: Total | B37: GRP moy FEM2549C | C37: 0.352257 | D37: 0.171883 | E37: 0.055380 | F37: 61% | G37: 30% | H37: 10% | I37: 100%
A38: Total | B38: GRP moy FEM3559 | C38: 0.329433 | D38: 0.258390 | E38: 0.046689 | F38: 52% | G38: 41% | H38: 7% | I38: 100%
A39: Total | B39: GRP moy FEM3559C | C39: 0.323480 | D39: 0.255782 | E39: 0.044835 | F39: 52% | G39: 41% | H39: 7% | I39: 100%
A40: Total | B40: GRP moy FEMMES | C40: 0.284504 | D40: 0.238303 | E40: 0.037112 | F40: 51% | G40: =D40/SUM($C40:$E40) -> 43% | H40: 7% | I40: 100%
A41: Total | B41: GRP moy FEM15-24 | C41: 0.303495 | D41: 0.087411 | E41: 0.053041 | F41: 68% | G41: 20% | H41: 12% | I41: 100%
A42: Total | B42: GRP moy FEM<35 | C42: 0.345030 | D42: 0.098047 | E42: 0.063811 | F42: 68% | G42: 19% | H42: 13% | I42: 100%
A43: Total | B43: GRP moy FEM15-49 | C43: 0.339344 | D43: 0.149556 | E43: 0.054756 | F43: 62% | G43: 28% | H43: 10% | I43: 100%
A44: Total | B44: GRP moy FEM>25 | C44: 0.281661 | D44: 0.260987 | E44: 0.034696 | F44: 49% | G44: 45% | H44: 6% | I44: 100%
A45: Total | B45: GRP moy FEM2534 | C45: 0.385705 | D45: 0.108765 | E45: 0.074515 | F45: 68% | G45: 19% | H45: 13% | I45: 100%
A46: Total | B46: GRP moy FEM2559 | C46: 0.339255 | D46: 0.218045 | E46: 0.052354 | F46: 56% | G46: 36% | H46: 9% | I46: 100%
A47: Total | B47: GRP moy FEM3549 | C47: 0.332859 | D47: 0.208975 | E47: 0.044331 | F47: 57% | G47: 36% | H47: 8% | I47: 100%
A48: Total | B48: GRP moy FEM>35 | C48: 0.262652 | D48: 0.288880 | E48: 0.027526 | F48: 45% | G48: 50% | H48: 5% | I48: 100%
A49: Total | B49: GRP moy FEM50+ | C49: 0.230741 | D49: 0.325321 | E49: 0.019910 | F49: 40% | G49: 56% | H49: 3% | I49: 100%
A50: Total | B50: GRP moy FEMACT | C50: 0.293758 | D50: 0.183029 | E50: 0.041298 | F50: 57% | G50: 35% | H50: 8% | I50: 100%
A51: Total | B51: GRP moy F4-14 | C51: 0.135875 | D51: 0.042220 | E51: 0.027816 | F51: 66% | G51: 21% | H51: 14% | I51: 100%
A52: Total | B52: GRP moy FOYER | C52: 0.416305 | D52: 0.305975 | F52: 58% | G52: 42% | H52: 0% | I52: 100%
A53: Total | B53: GRP moy GAR4A14 | C53: 0.106178 | D53: 0.038654 | E53: 0.030549 | F53: 61% | G53: 22% | H53: 17% | I53: 100%
A54: Total | B54: GRP moy HOMMES | C54: 0.211501 | D54: 0.141536 | E54: 0.017921 | F54: 57% | G54: 38% | H54: 5% | I54: 100%
A55: Total | B55: GRP moy HOM<35 | C55: 0.217541 | D55: 0.063416 | E55: 0.024675 | F55: 71% | G55: 21% | H55: 8% | I55: 100%
A56: Total | B56: GRP moy HOM<50 | C56: 0.239187 | D56: 0.093338 | E56: 0.029107 | F56: 66% | G56: 26% | H56: 8% | I56: 100%
A57: Total | B57: GRP moy HOM2534 | C57: 0.293559 | D57: 0.069838 | E57: 0.039474 | F57: 73% | G57: 17% | H57: 10% | I57: 100%
A58: Total | B58: GRP moy HOM2549 | C58: 0.275491 | D58: 0.107357 | E58: 0.036196 | F58: 66% | G58: 26% | H58: 9% | I58: 100%
A59: Total | B59: GRP moy HOM2559 | C59: 0.256606 | D59: 0.132109 | E59: 0.027196 | F59: 62% | G59: 32% | H59: 7% | I59: 100%
A60: Total | B60: GRP moy H3549 | C60: 0.265581 | D60: 0.129649 | E60: 0.034339 | F60: 62% | G60: 30% | H60: 8% | I60: 100%
A61: Total | B61: GRP moy HOM3559 | C61: 0.244613 | D61: 0.153928 | E61: 0.023063 | F61: 58% | G61: 37% | H61: 5% | I61: 100%
A62: Total | B62: GRP moy HOM<25 | C62: 0.147224 | D62: 0.058601 | E62: 0.011002 | F62: 68% | G62: 27% | H62: 5% | I62: 100%
A63: Total | B63: GRP moy HOM>25 | C63: 0.222817 | D63: 0.155854 | F63: 59% | G63: 41% | H63: 0% | I63: 100%
A64: Total | B64: GRP moy HOM>35 | C64: 0.209275 | D64: 0.173243 | E64: 0.015233 | F64: 53% | G64: 44% | H64: 4% | I64: 100%
A65: Total | B65: GRP moy HOM>50 | C65: 0.180364 | D65: 0.195590 | E65: 0.005509 | F65: 47% | G65: 51% | H65: 1% | I65: 100%
A66: Total | B66: GRP moy HOMACT | C66: 0.234454 | D66: 0.123967 | E66: 0.025234 | F66: 61% | G66: 32% | H66: 7% | I66: 100%
A67: Total | B67: GRP moy INACTIFS | C67: 0.233975 | D67: 0.237668 | F67: 50% | G67: 50% | H67: 0% | I67: 100%
A68: Total | B68: GRP moy ENS1134 | C68: 0.264132 | D68: 0.075674 | E68: 0.039815 | F68: 70% | G68: 20% | H68: 10% | I68: 100%
A69: Total | B69: GRP moy CSP+2549 | C69: 0.212284 | D69: 0.086984 | E69: 0.037967 | F69: 63% | G69: 26% | H69: 11% | I69: 100%
A70: Total | B70: GRP moy INDCSP+ | C70: 0.194013 | D70: 0.106728 | E70: 0.026350 | F70: 59% | G70: 33% | H70: 8% | I70: 100%
A71: Total | B71: GRP moy INCSP- | C71: 0.324430 | D71: 0.193144 | E71: 0.039081 | F71: 58% | G71: 35% | H71: 7% | I71: 100%
A72: Total | B72: GRP moy MEN-ENF | C72: 0.267052 | D72: 0.303358 | E72: 0.026152 | F72: =C72/SUM($C72:$E72) -> 45% | G72: =D72/SUM($C72:$E72) -> 51% | H72: =E72/SUM($C72:$E72) -> 4% | I72: =+SUM(F72:H72) -> 100%
A73: Total | B73: GRP moy MENAGERE | C73: 0.283800 | D73: 0.259179 | E73: 0.033727 | F73: 49% | G73: 45% | H73: 6% | I73: 100%
A74: Total | B74: GRP moy MEN<50 | C74: 0.361947 | D74: 0.170144 | E74: 0.052433 | F74: 62% | G74: 29% | H74: 9% | I74: 100%
A75: Total | B75: GRP moy MEN2559 | C75: 0.346751 | D75: 0.222322 | E75: 0.054443 | F75: 56% | G75: 36% | H75: 9% | I75: 100%
A76: Total | B76: GRP moy MEN>50 | C76: 0.225666 | D76: 0.325602 | E76: 0.019914 | F76: 40% | G76: 57% | H76: 3% | I76: 100%
A77: Total | B77: GRP moy MENENF | C77: 0.329403 | D77: 0.138720 | E77: 0.054528 | F77: 63% | G77: 27% | H77: 10% | I77: 100%
A78: Total | B78: GRP moy Mnef-25 | C78: 0.318034 | D78: 0.171396 | E78: 0.052281 | F78: 59% | G78: 32% | H78: 10% | I78: 100%
A79: Total | B79: GRP moy CMen3-8 | C79: 0.243685 | D79: 0.102186 | E79: 0.052083 | F79: 61% | G79: 26% | H79: 13% | I79: 100%
A80: Total | B80: GRP moy +100000h | C80: 0.232540 | D80: 0.181361 | E80: 0.029121 | F80: 52% | G80: 41% | H80: 7% | I80: 100%
A81: Total | B81: GRP moy PlibCsup | C81: 0.138239 | D81: 0.064435 | E81: 0.018986 | F81: 62% | G81: 29% | H81: 9% | I81: 100%
A82: Total | B82: GRP moy RACHA<60 | C82: 0.355793 | D82: 0.219852 | E82: 0.048693 | F82: 57% | G82: 35% | H82: 8% | I82: 100%
B84: Source : GRP: semestriel Thematik Janvier-Juin 2018(V35) et Med Loc(V1), bimestriel SNPTV / Couv: Médiadata Octobre-Novembre 2012 Médiamétrie
B85: La cible "25-49 ans PM Conso Pub(NR CABSATV19 et +)" n'a pas d'audience sur l'univers Cable sur la période 01/01/2017 - 31/12/2018. La cible "50-70 ans CSP+ ou retraites CSP+(NR CABSATV19 et +)" n'a pas d'audience sur l'univers Cable sur la période 01/01/2017 - 31/12/2018. La cible "Ensemble 11-24 ans(NR V24 et +)" n'a pas d'audience sur l'univers Cable sur la période 01/01/2017 - 31/12/2018. La cible "Ensemble 15-59 ans(NR V24 et +)" n'a pas d'audience sur l'univers Cable sur la période 01/01/2017 - 31/12/2018. La cible "Ensemble 35-49 ans(NR V24 et +)" n'a pas d'audience sur l'univers Cable sur la période 01/01/2017 - 31/12/2018. La cible "Femmes 15 à 49 ans(NR V24 et +)" n'a pas d'audience sur l'univers Cable sur la période 01/01/2017 - 31/12/2018. La cible "Femmes 35 à 49 ans(NR V24 et +)" n'a pas d'audience sur l'univers Cable sur la période 01/01/2017 - 31/12/2018. La cible "Filles 11 a 24 ans(NR CABV15)" n'a pas d'audience sur l'univers Cable sur la période 01/01/2017 - 31/12/2018. La cible "Filles 4-14 ans(NR V24 et +)" n'a pas d'audience sur l'univers Cable sur la période 01/01/2017 - 31/12/2018. La cible "Foyer(NR CABV15)" n'a pas d'audience sur l'univers Cable sur la période 01/01/2017 - 31/12/2018. La cible "Hommes < 35 ans(NR V24 et +)" n'a pas d'audience sur l'univers Cable sur la période 01/01/2017 - 31/12/2018. La cible "Hommes Actifs(NR V24 et +)" n'a pas d'audience sur l'univers Cable sur la période 01/01/2017 - 31/12/2018. La cible "Ind18+ CP Foy Vehineuf(NR CABSATV19 et +)" n'a pas d'audience sur l'univers Cable sur la période 01/01/2017 - 31/12/2018. La cible "Individus de 25-59 dans Foyer Conso+(NR CABSATV19 et +)" n'a pas d'audience sur l'univers Cable sur la période 01/01/2017 - 31/12/2018. La cible "Men15-49 PM Conso Pub(NR CABSATV19 et +)" n'a pas d'audience sur l'univers Cable sur la période 01/01/2017 - 31/12/2018. La cible "Ménageres CSP + avec Enfants -25 ans" n'a pas d'audience sur l'univers Cable sur la période 01/01/2017 - 31/12/2018. La cible "Ménagères 25-59 dans Foyer Conso+(NR CABSATV19 et +)" n'a pas d'audience sur l'univers Cable sur la période 01/01/2017 - 31/12/2018. La cible "Ménagères > 50 ans(NR V24 et +)" n'a pas d'audience sur l'univers Cable sur la période 01/01/2017 - 31/12/2018.

Sheet Clusters (hidden)
A1: Libellé | B1: Libellé Popcorn | C1: Libellé BO | D1: Cluster | E1: Day | F1: Access | G1: Peak | H1: Night | I1: NRJ12 | J1: CH25 | K1: NRJ Hits | L1: NRJ12 | M1: CH25 | N1: NRJ Hits | Q1: NRJ12 | R1: CH25 | S1: NRJ Hits | T1: Libellé offre | V1: TH cluster
A2: Femmes RDA avec enfant(s) | B2: MENENF | C2: TV_MEN_ENF | D2: Femmes | E2: 85 | F2: 110 | G2: 130 | H2: 80 | I2: R | J2: R | K2: R | L2: =VLOOKUP("GRP moy "&$B2,'Export Pop pour part d''offre'!$B:$G,5,FALSE) -> 63% | M2: =VLOOKUP("GRP moy "&$B2,'Export Pop pour part d''offre'!$B:$G,6,FALSE) -> 27% | N2: =VLOOKUP("GRP moy "&$B2,'Export Pop pour part d''offre'!$B:$H,7,FALSE) -> 10% | O2: ouiouioui | Q2: oui | R2: =IF('Simulateur 2019 NRJ Global'!C5="Millennials","non disponible","oui") -> oui | S2: =IF('Simulateur 2019 NRJ Global'!C5="Mixtes","non disponible","oui") -> oui | T2: Global | U2: 100 | V2: =VLOOKUP('Simulateur 2019 NRJ Global'!$C$5,Clusters!$D:$H,2,FALSE) -> 85
A3: Femmes 25-49 ans | B3: FEM2549 | C3: TV_F25-49 | D3: Femmes | E3: 85 | F3: 110 | G3: 130 | H3: 80 | I3: R | J3: R | K3: R | L3: =VLOOKUP("GRP moy "&$B3,'Export Pop pour part d''offre'!$B:$G,5,FALSE) -> 61% | M3: =VLOOKUP("GRP moy "&$B3,'Export Pop pour part d''offre'!$B:$G,6,FALSE) -> 30% | N3: =VLOOKUP("GRP moy "&$B3,'Export Pop pour part d''offre'!$B:$H,7,FALSE) -> 10% | O3: ouiouioui | Q3: non | R3: =IF('Simulateur 2019 NRJ Global'!C5="Millennials","non disponible","non") -> non | S3: =IF('Simulateur 2019 NRJ Global'!C5="Mixtes","non disponible","non") -> non | T3: Global Plus | U3: 105 | V3: =VLOOKUP('Simulateur 2019 NRJ Global'!$C$5,Clusters!$D:$H,3,FALSE) -> 110
A4: Femmes 35-59 ans | B4: FEM3559 | C4: TV_F35-59 | D4: Femmes | E4: 85 | F4: 110 | G4: 130 | H4: 80 | I4: R | J4: R | K4: R | L4: =VLOOKUP("GRP moy "&$B4,'Export Pop pour part d''offre'!$B:$G,5,FALSE) -> 52% | M4: =VLOOKUP("GRP moy "&$B4,'Export Pop pour part d''offre'!$B:$G,6,FALSE) -> 41% | N4: =VLOOKUP("GRP moy "&$B4,'Export Pop pour part d''offre'!$B:$H,7,FALSE) -> 7% | O4: ouiouioui | Q4: 107 | R4: 102 | S4: 95 | T4: Global Max | U4: 108 | V4: =VLOOKUP('Simulateur 2019 NRJ Global'!$C$5,Clusters!$D:$H,4,FALSE) -> 130
A5: Femmes 25-59 ans | B5: FEM2559 | C5: TV_FEM2559 | D5: Femmes | E5: 85 | F5: 110 | G5: 130 | H5: 80 | I5: R | J5: R | K5: R | L5: =VLOOKUP("GRP moy "&$B5,'Export Pop pour part d''offre'!$B:$G,5,FALSE) -> 56% | M5: =VLOOKUP("GRP moy "&$B5,'Export Pop pour part d''offre'!$B:$G,6,FALSE) -> 36% | N5: =VLOOKUP("GRP moy "&$B5,'Export Pop pour part d''offre'!$B:$H,7,FALSE) -> 9% | O5: ouiouioui | Q5: 100 | R5: 100 | S5: 100 | V5: =VLOOKUP('Simulateur 2019 NRJ Global'!$C$5,Clusters!$D:$H,5,FALSE) -> 80
A6: Femmes RDA avec enfant(s) -25 ans | B6: Mnef-25 | C6: TV_MEN_E-25 | D6: Femmes | E6: 85 | F6: 110 | G6: 130 | H6: 80 | I6: R | J6: R | K6: R | L6: =VLOOKUP("GRP moy "&$B6,'Export Pop pour part d''offre'!$B:$G,5,FALSE) -> 59% | M6: =VLOOKUP("GRP moy "&$B6,'Export Pop pour part d''offre'!$B:$G,6,FALSE) -> 32% | N6: =VLOOKUP("GRP moy "&$B6,'Export Pop pour part d''offre'!$B:$H,7,FALSE) -> 10% | O6: ouiouioui
A7: Femmes RDA -50 ans | B7: MEN<50 | C7: TV_MEN15-49 | D7: Femmes | E7: 85 | F7: 110 | G7: 130 | H7: 80 | I7: R | J7: R | K7: R | L7: =VLOOKUP("GRP moy "&$B7,'Export Pop pour part d''offre'!$B:$G,5,FALSE) -> 62% | M7: =VLOOKUP("GRP moy "&$B7,'Export Pop pour part d''offre'!$B:$G,6,FALSE) -> 29% | N7: =VLOOKUP("GRP moy "&$B7,'Export Pop pour part d''offre'!$B:$H,7,FALSE) -> 9% | O7: ouiouioui | Q7: Offre
A8: Femmes RDA 25-59 ans | B8: MEN2559 | C8: TV_MEN_25-59 | D8: Femmes | E8: 85 | F8: 110 | G8: 130 | H8: 80 | I8: R | J8: R | K8: R | L8: =VLOOKUP("GRP moy "&$B8,'Export Pop pour part d''offre'!$B:$G,5,FALSE) -> 56% | M8: =VLOOKUP("GRP moy "&$B8,'Export Pop pour part d''offre'!$B:$G,6,FALSE) -> 36% | N8: =VLOOKUP("GRP moy "&$B8,'Export Pop pour part d''offre'!$B:$H,7,FALSE) -> 9% | O8: ouiouioui | Q8: NRJ12 | R8: CH25 | S8: NRJ Hits
A9: Femmes 35-49 ans | B9: FEM3549 | C9: TV_F35-49 | D9: Femmes | E9: 85 | F9: 110 | G9: 130 | H9: 80 | I9: R | J9: R | K9: R | L9: =VLOOKUP("GRP moy "&$B9,'Export Pop pour part d''offre'!$B:$G,5,FALSE) -> 57% | M9: =VLOOKUP("GRP moy "&$B9,'Export Pop pour part d''offre'!$B:$G,6,FALSE) -> 36% | N9: =VLOOKUP("GRP moy "&$B9,'Export Pop pour part d''offre'!$B:$H,7,FALSE) -> 8% | O9: ouiouioui | P9: ='Simulateur 2019 NRJ Global'!$C$3 -> Femmes 25-49 ans | Q9: =VLOOKUP('Simulateur 2019 NRJ Global'!$C$3,Clusters!$A:$N,12,FALSE) -> 61% | R9: =VLOOKUP('Simulateur 2019 NRJ Global'!$C$3,Clusters!$A:$N,13,FALSE) -> 30% | S9: =VLOOKUP('Simulateur 2019 NRJ Global'!$C$3,Clusters!$A:$N,14,FALSE) -> 10%
A10: Femmes RDA | B10: MENAGERE | C10: TV_MEN | D10: Femmes | E10: 85 | F10: 110 | G10: 130 | H10: 80 | I10: R | J10: R | K10: R | L10: =VLOOKUP("GRP moy "&$B10,'Export Pop pour part d''offre'!$B:$G,5,FALSE) -> 49% | M10: =VLOOKUP("GRP moy "&$B10,'Export Pop pour part d''offre'!$B:$G,6,FALSE) -> 45% | N10: =VLOOKUP("GRP moy "&$B10,'Export Pop pour part d''offre'!$B:$H,7,FALSE) -> 6% | O10: ouiouioui | P10: Selection chaînes | Q10: ='Simulateur 2019 NRJ Global'!C15 -> oui | R10: ='Simulateur 2019 NRJ Global'!D15 -> oui | S10: ='Simulateur 2019 NRJ Global'!E15 -> oui
A11: Femmes 25 ans et + | B11: FEM>25 | C11: TV_FEM>25 | D11: Femmes | E11: 85 | F11: 110 | G11: 130 | H11: 80 | I11: R | J11: R | K11: R | L11: =VLOOKUP("GRP moy "&$B11,'Export Pop pour part d''offre'!$B:$G,5,FALSE) -> 49% | M11: =VLOOKUP("GRP moy "&$B11,'Export Pop pour part d''offre'!$B:$G,6,FALSE) -> 45% | N11: =VLOOKUP("GRP moy "&$B11,'Export Pop pour part d''offre'!$B:$H,7,FALSE) -> 6% | O11: ouiouioui | Q11: =IF(OR(Q10="non disponible",Q10="non"),0,Q9) -> 61% | R11: =IF(OR(R10="non disponible",R10="non"),0,R9) -> 30% | S11: =IF(OR(S10="non disponible",S10="non"),0,S9) -> 10%
A12: Femmes avec enfant(s) -6 ans | B12: Fm-ef-6a | C12: TV_Fm-ef-6a | D12: Femmes | E12: 85 | F12: 110 | G12: 130 | H12: 80 | I12: R | J12: R | K12: R | L12: =VLOOKUP("GRP moy "&$B12,'Export Pop pour part d''offre'!$B:$G,5,FALSE) -> 75% | M12: =VLOOKUP("GRP moy "&$B12,'Export Pop pour part d''offre'!$B:$G,6,FALSE) -> 25% | N12: =VLOOKUP("GRP moy "&$B12,'Export Pop pour part d''offre'!$B:$H,7,FALSE) -> 0% | O12: ouiouioui | P12: Offre résultante | Q12: =IFERROR(Q11/SUM($Q$11:$S$11),"% incorrects") -> 61% | R12: =IFERROR(R11/SUM($Q$11:$S$11),"% incorrects") -> 30% | S12: =IFERROR(S11/SUM($Q$11:$S$11),"% incorrects") -> 10%
A13: Femmes avec enfant(s) 3-8 ans | B13: CMen3-8 | C13: TV_CMen3-8 | D13: Femmes | E13: 85 | F13: 110 | G13: 130 | H13: 80 | I13: R | J13: R | K13: R | L13: =VLOOKUP("GRP moy "&$B13,'Export Pop pour part d''offre'!$B:$G,5,FALSE) -> 61% | M13: =VLOOKUP("GRP moy "&$B13,'Export Pop pour part d''offre'!$B:$G,6,FALSE) -> 26% | N13: =VLOOKUP("GRP moy "&$B13,'Export Pop pour part d''offre'!$B:$H,7,FALSE) -> 13% | O13: ouiouioui
A14: Femmes 15-49 ans | B14: FEM15-49 | C14: TV_F15-49 | D14: Femmes | E14: 85 | F14: 110 | G14: 130 | H14: 80 | I14: R | J14: R | K14: R | L14: =VLOOKUP("GRP moy "&$B14,'Export Pop pour part d''offre'!$B:$G,5,FALSE) -> 62% | M14: =VLOOKUP("GRP moy "&$B14,'Export Pop pour part d''offre'!$B:$G,6,FALSE) -> 28% | N14: =VLOOKUP("GRP moy "&$B14,'Export Pop pour part d''offre'!$B:$H,7,FALSE) -> 10% | O14: ouiouioui
A15: Femmes 15-34 ans | B15: FEM<35 | C15: TV_F15-34 | D15: Millennials | E15: 85 | F15: 130 | G15: 110 | H15: 80 | I15: R | J15: X | K15: R | L15: =VLOOKUP("GRP moy "&$B15,'Export Pop pour part d''offre'!$B:$G,5,FALSE) -> 68% | M15: =VLOOKUP("GRP moy "&$B15,'Export Pop pour part d''offre'!$B:$G,6,FALSE) -> 19% | N15: =VLOOKUP("GRP moy "&$B15,'Export Pop pour part d''offre'!$B:$H,7,FALSE) -> 13% | O15: ouinon disponibleoui
A16: Femmes 25-34 ans | B16: FEM2534 | C16: TV_F25-34 | D16: Millennials | E16: 85 | F16: 130 | G16: 110 | H16: 80 | I16: R | J16: X | K16: R | L16: =VLOOKUP("GRP moy "&$B16,'Export Pop pour part d''offre'!$B:$G,5,FALSE) -> 68% | M16: =VLOOKUP("GRP moy "&$B16,'Export Pop pour part d''offre'!$B:$G,6,FALSE) -> 19% | N16: =VLOOKUP("GRP moy "&$B16,'Export Pop pour part d''offre'!$B:$H,7,FALSE) -> 13% | O16: ouinon disponibleoui
A17: Individus 15-34 ans | B17: ENS<35 | C17: TV_ENS15-34 | D17: Millennials | E17: 85 | F17: 130 | G17: 110 | H17: 80 | I17: R | J17: X | K17: R | L17: =VLOOKUP("GRP moy "&$B17,'Export Pop pour part d''offre'!$B:$G,5,FALSE) -> 69% | M17: =VLOOKUP("GRP moy "&$B17,'Export Pop pour part d''offre'!$B:$G,6,FALSE) -> 20% | N17: =VLOOKUP("GRP moy "&$B17,'Export Pop pour part d''offre'!$B:$H,7,FALSE) -> 11% | O17: ouinon disponibleoui
A18: Individus 25-34 ans | B18: ENS25-34 | C18: TV_ENS25-34 | D18: Millennials | E18: 85 | F18: 130 | G18: 110 | H18: 80 | I18: R | J18: X | K18: R | L18: =VLOOKUP("GRP moy "&$B18,'Export Pop pour part d''offre'!$B:$G,5,FALSE) -> 70% | M18: =VLOOKUP("GRP moy "&$B18,'Export Pop pour part d''offre'!$B:$G,6,FALSE) -> 18% | N18: =VLOOKUP("GRP moy "&$B18,'Export Pop pour part d''offre'!$B:$H,7,FALSE) -> 12% | O18: ouinon disponibleoui
A19: Femmes 15-24 ans | B19: FEM15-24 | C19: TV_F15-24 | D19: Millennials | E19: 85 | F19: 130 | G19: 110 | H19: 80 | I19: R | J19: X | K19: R | L19: =VLOOKUP("GRP moy "&$B19,'Export Pop pour part d''offre'!$B:$G,5,FALSE) -> 68% | M19: =VLOOKUP("GRP moy "&$B19,'Export Pop pour part d''offre'!$B:$G,6,FALSE) -> 20% | N19: =VLOOKUP("GRP moy "&$B19,'Export Pop pour part d''offre'!$B:$H,7,FALSE) -> 12% | O19: ouinon disponibleoui
A20: Individus 25-49 ans | B20: ENS2549 | C20: TV_ENS25-49 | D20: Mixtes | E20: 85 | F20: 110 | G20: 130 | H20: 80 | I20: R | J20: R | K20: X | L20: =VLOOKUP("GRP moy "&$B20,'Export Pop pour part d''offre'!$B:$G,5,FALSE) -> 63% | M20: =VLOOKUP("GRP moy "&$B20,'Export Pop pour part d''offre'!$B:$G,6,FALSE) -> 28% | N20: =VLOOKUP("GRP moy "&$B20,'Export Pop pour part d''offre'!$B:$H,7,FALSE) -> 9% | O20: ouiouinon disponible
A21: Individus 25-59 ans | B21: ENS2559 | C21: TV_ENS2559 | D21: Mixtes | E21: 85 | F21: 110 | G21: 130 | H21: 80 | I21: R | J21: R | K21: X | L21: =VLOOKUP("GRP moy "&$B21,'Export Pop pour part d''offre'!$B:$G,5,FALSE) -> 58% | M21: =VLOOKUP("GRP moy "&$B21,'Export Pop pour part d''offre'!$B:$G,6,FALSE) -> 34% | N21: =VLOOKUP("GRP moy "&$B21,'Export Pop pour part d''offre'!$B:$H,7,FALSE) -> 8% | O21: ouiouinon disponible
A22: Individus 35-59 ans | B22: ENS3559 | C22: TV_ENS35-59 | D22: Mixtes | E22: 85 | F22: 110 | G22: 130 | H22: 80 | I22: R | J22: R | K22: X | L22: =VLOOKUP("GRP moy "&$B22,'Export Pop pour part d''offre'!$B:$G,5,FALSE) -> 54% | M22: =VLOOKUP("GRP moy "&$B22,'Export Pop pour part d''offre'!$B:$G,6,FALSE) -> 39% | N22: =VLOOKUP("GRP moy "&$B22,'Export Pop pour part d''offre'!$B:$H,7,FALSE) -> 7% | O22: ouiouinon disponible
A23: RDA < 60 ans | B23: RACHA<60 | C23: TV_RDA15-59 | D23: Mixtes | E23: 85 | F23: 110 | G23: 130 | H23: 80 | I23: R | J23: R | K23: X | L23: =VLOOKUP("GRP moy "&$B23,'Export Pop pour part d''offre'!$B:$G,5,FALSE) -> 57% | M23: =VLOOKUP("GRP moy "&$B23,'Export Pop pour part d''offre'!$B:$G,6,FALSE) -> 35% | N23: =VLOOKUP("GRP moy "&$B23,'Export Pop pour part d''offre'!$B:$H,7,FALSE) -> 8% | O23: ouiouinon disponible
A24: Individus 15-49 ans | B24: ENS<50 | C24: TV_ENS15-49 | D24: Mixtes | E24: 85 | F24: 110 | G24: 130 | H24: 80 | I24: R | J24: R | K24: X | L24: =VLOOKUP("GRP moy "&$B24,'Export Pop pour part d''offre'!$B:$G,5,FALSE) -> 64% | M24: =VLOOKUP("GRP moy "&$B24,'Export Pop pour part d''offre'!$B:$G,6,FALSE) -> 27% | N24: =VLOOKUP("GRP moy "&$B24,'Export Pop pour part d''offre'!$B:$H,7,FALSE) -> 9% | O24: ouiouinon disponible
A25: Individus 35-49 ans | B25: ENS3549 | C25: TV_ENS35-49 | D25: Mixtes | E25: 85 | F25: 110 | G25: 130 | H25: 80 | I25: R | J25: R | K25: X | L25: =VLOOKUP("GRP moy "&$B25,'Export Pop pour part d''offre'!$B:$G,5,FALSE) -> 59% | M25: =VLOOKUP("GRP moy "&$B25,'Export Pop pour part d''offre'!$B:$G,6,FALSE) -> 33% | N25: =VLOOKUP("GRP moy "&$B25,'Export Pop pour part d''offre'!$B:$H,7,FALSE) -> 8% | O25: ouiouinon disponible
A26: Individus 15-24 ans | B26: ENS15-24 | C26: TV_ENS15-24 | D26: Non garantie
A27: Hommes 15-34 ans | B27: HOM<35 | C27: TV_H15-34 | D27: Non garantie
A28: Actifs | B28: ACTIFS | C28: TV_ACTIF | D28: Non garantie
A29: Parents avec enfant(s) 4-9 ans | B29: E49EF | C29: TV_E49EF | D29: Non garantie
A30: Individus 25-49 ans CSP+ | B30: CSP+2549 | C30: TV_25-49CSP+ | D30: Non garantie
A31: Hommes 15-24 ans | B31: HOM<25 | C31: TV_H15-24 | D31: Non garantie
A32: Femmes 25-49 ans CSP+ | B32: F2549CS+ | C32: TV_F25-49CSP+ | D32: Non garantie
A33: Hommes 25-49 ans | B33: HOM2549 | C33: TV_H25-49 | D33: Non garantie
A34: Hommes 25-34 ans | B34: HOM2534 | C34: TV_H25-34 | D34: Non garantie
A35: Individus CSP+ | B35: CSP+ | C35: TV_CSP+ | D35: Non garantie
A36: Enfants 11-14 ans | B36: ENF11A14 | C36: TV_E11-14 | D36: Non garantie
A37: Individus 50 ans et + | B37: 50ANS+ | C37: TV_ENS50+ | D37: Non garantie
A38: Femmes 50 ans et + | B38: FEM50+ | C38: TV_FEM50+ | D38: Non garantie
A39: Individus 35 ans et + | B39: 35ANS+ | C39: TV_ENS35+ | D39: Non garantie

Sheet Indice offres (hidden)
B1: P1 | C1: P2 | D1: P3 | E1: P4 | F1: P5 | G1: P6 | H1: P7 | I1: P8 | J1: P9 | K1: P10 | L1: P11 | M1: P12 | N1: P13 | O1: P14 | P1: P15
A2: Poids Prime | B2: =IF(OR('Simulateur 2019 NRJ Global'!C30<>"",AND('Simulateur 2019 NRJ Global'!C30="",SUM('Simulateur 2019 NRJ Global'!C28:C31)<>0)),IF('Simulateur 2019 NRJ Global'!C30<=0.2,Clusters!$T$2,IF('Simulateur 2019 NRJ Global'!C30<=0.4,Clusters!$T$3,Clusters!$T$4)),"") ->  | C2: =IF(OR('Simulateur 2019 NRJ Global'!D30<>"",AND('Simulateur 2019 NRJ Global'!D30="",SUM('Simulateur 2019 NRJ Global'!D28:D31)<>0)),IF('Simulateur 2019 NRJ Global'!D30<=0.2,Clusters!$T$2,IF('Simulateur 2019 NRJ Global'!D30<=0.4,Clusters!$T$3,Clusters!$T$4)),"") ->  | D2: =IF(OR('Simulateur 2019 NRJ Global'!E30<>"",AND('Simulateur 2019 NRJ Global'!E30="",SUM('Simulateur 2019 NRJ Global'!E28:E31)<>0)),IF('Simulateur 2019 NRJ Global'!E30<=0.2,Clusters!$T$2,IF('Simulateur 2019 NRJ Global'!E30<=0.4,Clusters!$T$3,Clusters!$T$4)),"") ->  | E2: =IF(OR('Simulateur 2019 NRJ Global'!F30<>"",AND('Simulateur 2019 NRJ Global'!F30="",SUM('Simulateur 2019 NRJ Global'!F28:F31)<>0)),IF('Simulateur 2019 NRJ Global'!F30<=0.2,Clusters!$T$2,IF('Simulateur 2019 NRJ Global'!F30<=0.4,Clusters!$T$3,Clusters!$T$4)),"") ->  | F2: =IF(OR('Simulateur 2019 NRJ Global'!G30<>"",AND('Simulateur 2019 NRJ Global'!G30="",SUM('Simulateur 2019 NRJ Global'!G28:G31)<>0)),IF('Simulateur 2019 NRJ Global'!G30<=0.2,Clusters!$T$2,IF('Simulateur 2019 NRJ Global'!G30<=0.4,Clusters!$T$3,Clusters!$T$4)),"") ->  | G2: =IF(OR('Simulateur 2019 NRJ Global'!H30<>"",AND('Simulateur 2019 NRJ Global'!H30="",SUM('Simulateur 2019 NRJ Global'!H28:H31)<>0)),IF('Simulateur 2019 NRJ Global'!H30<=0.2,Clusters!$T$2,IF('Simulateur 2019 NRJ Global'!H30<=0.4,Clusters!$T$3,Clusters!$T$4)),"") ->  | H2: =IF(OR('Simulateur 2019 NRJ Global'!I30<>"",AND('Simulateur 2019 NRJ Global'!I30="",SUM('Simulateur 2019 NRJ Global'!I28:I31)<>0)),IF('Simulateur 2019 NRJ Global'!I30<=0.2,Clusters!$T$2,IF('Simulateur 2019 NRJ Global'!I30<=0.4,Clusters!$T$3,Clusters!$T$4)),"") ->  | I2: =IF(OR('Simulateur 2019 NRJ Global'!J30<>"",AND('Simulateur 2019 NRJ Global'!J30="",SUM('Simulateur 2019 NRJ Global'!J28:J31)<>0)),IF('Simulateur 2019 NRJ Global'!J30<=0.2,Clusters!$T$2,IF('Simulateur 2019 NRJ Global'!J30<=0.4,Clusters!$T$3,Clusters!$T$4)),"") ->  | J2: =IF(OR('Simulateur 2019 NRJ Global'!K30<>"",AND('Simulateur 2019 NRJ Global'!K30="",SUM('Simulateur 2019 NRJ Global'!K28:K31)<>0)),IF('Simulateur 2019 NRJ Global'!K30<=0.2,Clusters!$T$2,IF('Simulateur 2019 NRJ Global'!K30<=0.4,Clusters!$T$3,Clusters!$T$4)),"") ->  | K2: =IF(OR('Simulateur 2019 NRJ Global'!L30<>"",AND('Simulateur 2019 NRJ Global'!L30="",SUM('Simulateur 2019 NRJ Global'!L28:L31)<>0)),IF('Simulateur 2019 NRJ Global'!L30<=0.2,Clusters!$T$2,IF('Simulateur 2019 NRJ Global'!L30<=0.4,Clusters!$T$3,Clusters!$T$4)),"") ->  | L2: =IF(OR('Simulateur 2019 NRJ Global'!M30<>"",AND('Simulateur 2019 NRJ Global'!M30="",SUM('Simulateur 2019 NRJ Global'!M28:M31)<>0)),IF('Simulateur 2019 NRJ Global'!M30<=0.2,Clusters!$T$2,IF('Simulateur 2019 NRJ Global'!M30<=0.4,Clusters!$T$3,Clusters!$T$4)),"") ->  | M2: =IF(OR('Simulateur 2019 NRJ Global'!N30<>"",AND('Simulateur 2019 NRJ Global'!N30="",SUM('Simulateur 2019 NRJ Global'!N28:N31)<>0)),IF('Simulateur 2019 NRJ Global'!N30<=0.2,Clusters!$T$2,IF('Simulateur 2019 NRJ Global'!N30<=0.4,Clusters!$T$3,Clusters!$T$4)),"") ->  | N2: =IF(OR('Simulateur 2019 NRJ Global'!O30<>"",AND('Simulateur 2019 NRJ Global'!O30="",SUM('Simulateur 2019 NRJ Global'!O28:O31)<>0)),IF('Simulateur 2019 NRJ Global'!O30<=0.2,Clusters!$T$2,IF('Simulateur 2019 NRJ Global'!O30<=0.4,Clusters!$T$3,Clusters!$T$4)),"") ->  | O2: =IF(OR('Simulateur 2019 NRJ Global'!P30<>"",AND('Simulateur 2019 NRJ Global'!P30="",SUM('Simulateur 2019 NRJ Global'!P28:P31)<>0)),IF('Simulateur 2019 NRJ Global'!P30<=0.2,Clusters!$T$2,IF('Simulateur 2019 NRJ Global'!P30<=0.4,Clusters!$T$3,Clusters!$T$4)),"") ->  | P2: =IF(OR('Simulateur 2019 NRJ Global'!Q30<>"",AND('Simulateur 2019 NRJ Global'!Q30="",SUM('Simulateur 2019 NRJ Global'!Q28:Q31)<>0)),IF('Simulateur 2019 NRJ Global'!Q30<=0.2,Clusters!$T$2,IF('Simulateur 2019 NRJ Global'!Q30<=0.4,Clusters!$T$3,Clusters!$T$4)),"") -> 
A3: EP | B3: =IF('Simulateur 2019 NRJ Global'!C38="","",IF('Simulateur 2019 NRJ Global'!C38<=0.2,Clusters!$T$2,IF('Simulateur 2019 NRJ Global'!C38<=0.4,Clusters!$T$3,Clusters!$T$4))) ->  | C3: =IF('Simulateur 2019 NRJ Global'!D38="","",IF('Simulateur 2019 NRJ Global'!D38<=0.2,Clusters!$T$2,IF('Simulateur 2019 NRJ Global'!D38<=0.4,Clusters!$T$3,Clusters!$T$4))) ->  | D3: =IF('Simulateur 2019 NRJ Global'!E38="","",IF('Simulateur 2019 NRJ Global'!E38<=0.2,Clusters!$T$2,IF('Simulateur 2019 NRJ Global'!E38<=0.4,Clusters!$T$3,Clusters!$T$4))) ->  | E3: =IF('Simulateur 2019 NRJ Global'!F38="","",IF('Simulateur 2019 NRJ Global'!F38<=0.2,Clusters!$T$2,IF('Simulateur 2019 NRJ Global'!F38<=0.4,Clusters!$T$3,Clusters!$T$4))) ->  | F3: =IF('Simulateur 2019 NRJ Global'!G38="","",IF('Simulateur 2019 NRJ Global'!G38<=0.2,Clusters!$T$2,IF('Simulateur 2019 NRJ Global'!G38<=0.4,Clusters!$T$3,Clusters!$T$4))) ->  | G3: =IF('Simulateur 2019 NRJ Global'!H38="","",IF('Simulateur 2019 NRJ Global'!H38<=0.2,Clusters!$T$2,IF('Simulateur 2019 NRJ Global'!H38<=0.4,Clusters!$T$3,Clusters!$T$4))) ->  | H3: =IF('Simulateur 2019 NRJ Global'!I38="","",IF('Simulateur 2019 NRJ Global'!I38<=0.2,Clusters!$T$2,IF('Simulateur 2019 NRJ Global'!I38<=0.4,Clusters!$T$3,Clusters!$T$4))) ->  | I3: =IF('Simulateur 2019 NRJ Global'!J38="","",IF('Simulateur 2019 NRJ Global'!J38<=0.2,Clusters!$T$2,IF('Simulateur 2019 NRJ Global'!J38<=0.4,Clusters!$T$3,Clusters!$T$4))) ->  | J3: =IF('Simulateur 2019 NRJ Global'!K38="","",IF('Simulateur 2019 NRJ Global'!K38<=0.2,Clusters!$T$2,IF('Simulateur 2019 NRJ Global'!K38<=0.4,Clusters!$T$3,Clusters!$T$4))) ->  | K3: =IF('Simulateur 2019 NRJ Global'!L38="","",IF('Simulateur 2019 NRJ Global'!L38<=0.2,Clusters!$T$2,IF('Simulateur 2019 NRJ Global'!L38<=0.4,Clusters!$T$3,Clusters!$T$4))) ->  | L3: =IF('Simulateur 2019 NRJ Global'!M38="","",IF('Simulateur 2019 NRJ Global'!M38<=0.2,Clusters!$T$2,IF('Simulateur 2019 NRJ Global'!M38<=0.4,Clusters!$T$3,Clusters!$T$4))) ->  | M3: =IF('Simulateur 2019 NRJ Global'!N38="","",IF('Simulateur 2019 NRJ Global'!N38<=0.2,Clusters!$T$2,IF('Simulateur 2019 NRJ Global'!N38<=0.4,Clusters!$T$3,Clusters!$T$4))) ->  | N3: =IF('Simulateur 2019 NRJ Global'!O38="","",IF('Simulateur 2019 NRJ Global'!O38<=0.2,Clusters!$T$2,IF('Simulateur 2019 NRJ Global'!O38<=0.4,Clusters!$T$3,Clusters!$T$4))) ->  | O3: =IF('Simulateur 2019 NRJ Global'!P38="","",IF('Simulateur 2019 NRJ Global'!P38<=0.2,Clusters!$T$2,IF('Simulateur 2019 NRJ Global'!P38<=0.4,Clusters!$T$3,Clusters!$T$4))) ->  | P3: =IF('Simulateur 2019 NRJ Global'!Q38="","",IF('Simulateur 2019 NRJ Global'!Q38<=0.2,Clusters!$T$2,IF('Simulateur 2019 NRJ Global'!Q38<=0.4,Clusters!$T$3,Clusters!$T$4))) -> 
A4: Synthèse | B4: =IF(AND(B2="",B3=""),"",IF(OR(B2="Global Max",B3="Global Max"),"Global Max",IF(OR(B2="Global Plus",B3="Global Plus"),"Global Plus","Global"))) ->  | C4: =IF(AND(C2="",C3=""),"",IF(OR(C2="Global Max",C3="Global Max"),"Global Max",IF(OR(C2="Global Plus",C3="Global Plus"),"Global Plus","Global"))) -> 
A5: Indices | B5: =IFERROR(VLOOKUP(B4,Clusters!$T$2:$U$4,2,FALSE),"") ->  | C5: =IFERROR(VLOOKUP(C4,Clusters!$T$2:$U$4,2,FALSE),"") ->  | D5: =IFERROR(VLOOKUP(D4,Clusters!$T$2:$U$4,2,FALSE),"") ->  | E5: =IFERROR(VLOOKUP(E4,Clusters!$T$2:$U$4,2,FALSE),"") ->  | F5: =IFERROR(VLOOKUP(F4,Clusters!$T$2:$U$4,2,FALSE),"") ->  | G5: =IFERROR(VLOOKUP(G4,Clusters!$T$2:$U$4,2,FALSE),"") ->  | H5: =IFERROR(VLOOKUP(H4,Clusters!$T$2:$U$4,2,FALSE),"") ->  | I5: =IFERROR(VLOOKUP(I4,Clusters!$T$2:$U$4,2,FALSE),"") ->  | J5: =IFERROR(VLOOKUP(J4,Clusters!$T$2:$U$4,2,FALSE),"") ->  | K5: =IFERROR(VLOOKUP(K4,Clusters!$T$2:$U$4,2,FALSE),"") ->  | L5: =IFERROR(VLOOKUP(L4,Clusters!$T$2:$U$4,2,FALSE),"") ->  | M5: =IFERROR(VLOOKUP(M4,Clusters!$T$2:$U$4,2,FALSE),"") ->  | N5: =IFERROR(VLOOKUP(N4,Clusters!$T$2:$U$4,2,FALSE),"") ->  | O5: =IFERROR(VLOOKUP(O4,Clusters!$T$2:$U$4,2,FALSE),"") ->  | P5: =IFERROR(VLOOKUP(P4,Clusters!$T$2:$U$4,2,FALSE),"") -> 

Sheet Indice EP (hidden)
A1: du 1er janvier au 6 janvier | B1: du 7 janvier au 10 février | C1: du 11 février au 10 mars | D1: du 11 mars au 7 avril | E1: du 8 avril au 28 avril | F1: du 29 avril au 12 mai | G1: du 13 mai au 30 juin | H1: du 1er juillet au 14 juillet | I1: du 15 juillet au 28 juillet | J1: du 29 juillet au 18 août | K1: du 19 août au 1er septembre | L1: du 2 septembre au 20 octobre | M1: du 21 octobre au 3 novembre | N1: du 4 novembre au 22 décembre | O1: du 23 décembre au 31 décembre
A2: =IF('Simulateur 2019 NRJ Global'!C38="","",'Simulateur 2019 NRJ Global'!C38*102+(1-'Simulateur 2019 NRJ Global'!C38)*100) ->  | B2: =IF('Simulateur 2019 NRJ Global'!D38="","",'Simulateur 2019 NRJ Global'!D38*102+(1-'Simulateur 2019 NRJ Global'!D38)*100) ->  | C2: =IF('Simulateur 2019 NRJ Global'!E38="","",'Simulateur 2019 NRJ Global'!E38*102+(1-'Simulateur 2019 NRJ Global'!E38)*100) ->  | D2: =IF('Simulateur 2019 NRJ Global'!F38="","",'Simulateur 2019 NRJ Global'!F38*102+(1-'Simulateur 2019 NRJ Global'!F38)*100) ->  | E2: =IF('Simulateur 2019 NRJ Global'!G38="","",'Simulateur 2019 NRJ Global'!G38*102+(1-'Simulateur 2019 NRJ Global'!G38)*100) ->  | F2: =IF('Simulateur 2019 NRJ Global'!H38="","",'Simulateur 2019 NRJ Global'!H38*102+(1-'Simulateur 2019 NRJ Global'!H38)*100) ->  | G2: =IF('Simulateur 2019 NRJ Global'!I38="","",'Simulateur 2019 NRJ Global'!I38*102+(1-'Simulateur 2019 NRJ Global'!I38)*100) ->  | H2: =IF('Simulateur 2019 NRJ Global'!J38="","",'Simulateur 2019 NRJ Global'!J38*102+(1-'Simulateur 2019 NRJ Global'!J38)*100) ->  | I2: =IF('Simulateur 2019 NRJ Global'!K38="","",'Simulateur 2019 NRJ Global'!K38*102+(1-'Simulateur 2019 NRJ Global'!K38)*100) ->  | J2: =IF('Simulateur 2019 NRJ Global'!L38="","",'Simulateur 2019 NRJ Global'!L38*102+(1-'Simulateur 2019 NRJ Global'!L38)*100) ->  | K2: =IF('Simulateur 2019 NRJ Global'!M38="","",'Simulateur 2019 NRJ Global'!M38*102+(1-'Simulateur 2019 NRJ Global'!M38)*100) ->  | L2: =IF('Simulateur 2019 NRJ Global'!N38="","",'Simulateur 2019 NRJ Global'!N38*102+(1-'Simulateur 2019 NRJ Global'!N38)*100) ->  | M2: =IF('Simulateur 2019 NRJ Global'!O38="","",'Simulateur 2019 NRJ Global'!O38*102+(1-'Simulateur 2019 NRJ Global'!O38)*100) ->  | N2: =IF('Simulateur 2019 NRJ Global'!P38="","",'Simulateur 2019 NRJ Global'!P38*102+(1-'Simulateur 2019 NRJ Global'!P38)*100) ->  | O2: =IF('Simulateur 2019 NRJ Global'!Q38="","",'Simulateur 2019 NRJ Global'!Q38*102+(1-'Simulateur 2019 NRJ Global'!Q38)*100) -> 
A3: =IF(AND('Simulateur 2019 NRJ Global'!C32<>"",'Simulateur 2019 NRJ Global'!C38=""),1,0) -> 0 | B3: =IF(AND('Simulateur 2019 NRJ Global'!D32<>"",'Simulateur 2019 NRJ Global'!D38=""),1,0) -> 0 | C3: =IF(AND('Simulateur 2019 NRJ Global'!E32<>"",'Simulateur 2019 NRJ Global'!E38=""),1,0) -> 0 | D3: =IF(AND('Simulateur 2019 NRJ Global'!F32<>"",'Simulateur 2019 NRJ Global'!F38=""),1,0) -> 0 | E3: =IF(AND('Simulateur 2019 NRJ Global'!G32<>"",'Simulateur 2019 NRJ Global'!G38=""),1,0) -> 0 | F3: =IF(AND('Simulateur 2019 NRJ Global'!H32<>"",'Simulateur 2019 NRJ Global'!H38=""),1,0) -> 0 | G3: =IF(AND('Simulateur 2019 NRJ Global'!I32<>"",'Simulateur 2019 NRJ Global'!I38=""),1,0) -> 0 | H3: =IF(AND('Simulateur 2019 NRJ Global'!J32<>"",'Simulateur 2019 NRJ Global'!J38=""),1,0) -> 0 | I3: =IF(AND('Simulateur 2019 NRJ Global'!K32<>"",'Simulateur 2019 NRJ Global'!K38=""),1,0) -> 0 | J3: =IF(AND('Simulateur 2019 NRJ Global'!L32<>"",'Simulateur 2019 NRJ Global'!L38=""),1,0) -> 0 | K3: =IF(AND('Simulateur 2019 NRJ Global'!M32<>"",'Simulateur 2019 NRJ Global'!M38=""),1,0) -> 0 | L3: =IF(AND('Simulateur 2019 NRJ Global'!N32<>"",'Simulateur 2019 NRJ Global'!N38=""),1,0) -> 0 | M3: =IF(AND('Simulateur 2019 NRJ Global'!O32<>"",'Simulateur 2019 NRJ Global'!O38=""),1,0) -> 0 | N3: =IF(AND('Simulateur 2019 NRJ Global'!P32<>"",'Simulateur 2019 NRJ Global'!P38=""),1,0) -> 0 | O3: =IF(AND('Simulateur 2019 NRJ Global'!Q32<>"",'Simulateur 2019 NRJ Global'!Q38=""),1,0) -> 0

Sheet Simulateur 2019 NRJ Global
B1: Simulateur 2019 - Ct GRP net net garanti
B3: Cible: | C3: Femmes 25-49 ans | G3: Annonceur:
B5: Cluster cible garantie: | C5: =VLOOKUP(C3,Clusters!$A:$D,4,FALSE) -> Femmes
B7: Ct GRP base 100:
B10: Sélection des chaînes définie par la régie, sinon précisez:
B14: Disponibilité | C14: =VLOOKUP($C$3,Clusters!$A:$M,9,FALSE) -> R | D14: =VLOOKUP($C$3,Clusters!$A:$M,10,FALSE) -> R | E14: =VLOOKUP($C$3,Clusters!$A:$M,11,FALSE) -> R
B15: Sélection chaîne (oui/non) | C15: oui | D15: oui | E15: oui
B16: Indices | C16: =IF(C15="oui",IF(VLOOKUP($C$3,Clusters!$A:$O,15,FALSE)=CONCATENATE('Simulateur 2019 NRJ Global'!$C$15,'Simulateur 2019 NRJ Global'!$D$15,'Simulateur 2019 NRJ Global'!$E$15),Clusters!Q5,Clusters!Q4),"-") -> 100 | D16: =IF(D15="oui",IF(VLOOKUP($C$3,Clusters!$A:$O,15,FALSE)=CONCATENATE('Simulateur 2019 NRJ Global'!$C$15,'Simulateur 2019 NRJ Global'!$D$15,'Simulateur 2019 NRJ Global'!$E$15),Clusters!R5,Clusters!R4),"-") -> 100 | E16: =IF(E15="oui",IF(VLOOKUP($C$3,Clusters!$A:$O,15,FALSE)=CONCATENATE('Simulateur 2019 NRJ Global'!$C$15,'Simulateur 2019 NRJ Global'!$D$15,'Simulateur 2019 NRJ Global'!$E$15),Clusters!S5,Clusters!S4),"-") -> 100
B17: % GRP | C17: =Clusters!Q12 -> 61% | D17: =Clusters!R12 -> 30% | E17: =Clusters!S12 -> 10%
B19: Indice chaînes: | C19: =IF(CONCATENATE(C15,D15,E15)=VLOOKUP(C3,Clusters!$A:$O,15,FALSE),100,SUMPRODUCT(C16:E16,C17:E17)) -> 100.0
B21: Poids par période (% GRP): | D21: =IF(SUM(C24:Q24)=0,"",SUM(C24:Q24)) -> 
B22: Période | C22: P1 : du 1er janvier au 6 janvier | D22: P2: du 7 janvier au 10 février | E22: P3: du 11 février au 10 mars | F22: P4: du 11 mars au 7 avril | G22: P5: du 8 avril au 28 avril | H22: P6: du 29 avril au 12 mai | I22: P7: du 13 mai au 30 juin | J22: P8: du 1er juillet au 14 juillet | K22: P9: du 15 juillet au 28 juillet | L22: P10: du 29 juillet au 18 août | M22: P11: du 19 août au 1er septembre | N22: P12: du 2 septembre au 20 octobre | O22: P13: du 21 octobre au 3 novembre | P22: P14: du 4 novembre au 22 décembre | Q22: P15: du 23 décembre au 31 décembre
B23: Indices | C23: 85 | D23: 90 | E23: 90 | F23: 105 | G23: 100 | H23: 100 | I23: 120 | J23: 100 | K23: 70 | L23: 65 | M23: 100 | N23: 120 | O23: 120 | P23: 120 | Q23: 85
B24: % GRP
B26: Poids par tranche horaire (% GRP):
B27: Tranche horaire | C27: P1 : du 1er janvier au 6 janvier | D27: P2: du 7 janvier au 10 février | E27: P3: du 11 février au 10 mars | F27: P4: du 11 mars au 7 avril | G27: P5: du 8 avril au 28 avril | H27: P6: du 29 avril au 12 mai | I27: P7: du 13 mai au 30 juin | J27: P8: du 1er juillet au 14 juillet | K27: P9: du 15 juillet au 28 juillet | L27: P10: du 29 juillet au 18 août | M27: P11: du 19 août au 1er septembre | N27: P12: du 2 septembre au 20 octobre | O27: P13: du 21 octobre au 3 novembre | P27: P14: du 4 novembre au 22 décembre | Q27: P15: du 23 décembre au 31 décembre
B28: ="Day ("&Clusters!V2&")" -> Day (85)
B29: ="Access ("&Clusters!V3&")" -> Access (110)
B30: ="Peak ("&Clusters!V4&")" -> Peak (130)
B31: ="Night ("&Clusters!V5&")" -> Night (80)
B32: TOTAL tranches | C32: =IF(OR(C24="",C24=0),"",SUM(C28:C31)) ->  | D32: =IF(OR(D24="",D24=0),"",SUM(D28:D31)) -> 
B33: Offre déclenchée | C33: ='Indice offres'!B4 ->  | D33: ='Indice offres'!C4 ->  | E33: ='Indice offres'!D4 ->  | F33: ='Indice offres'!E4 ->  | G33: ='Indice offres'!F4 ->  | H33: ='Indice offres'!G4 ->  | I33: ='Indice offres'!H4 ->  | J33: ='Indice offres'!I4 ->  | K33: ='Indice offres'!J4 ->  | L33: ='Indice offres'!K4 ->  | M33: ='Indice offres'!L4 ->  | N33: ='Indice offres'!M4 ->  | O33: ='Indice offres'!N4 ->  | P33: ='Indice offres'!O4 ->  | Q33: ='Indice offres'!P4 -> 
B35: Indice mediaplanning: | C35: =IFERROR(IF(OR(D21<>1,AVERAGE(C32:Q32)<>1),"% incorrects",SUM(C49:Q52)*100),"") -> 
B37: Poids d'EP:
B38: % d'EP 6 positions (102):
B39: Offre déclenchée | C39: ='Indice offres'!B4 ->  | D39: ='Indice offres'!C4 ->  | E39: ='Indice offres'!D4 ->  | F39: ='Indice offres'!E4 ->  | G39: ='Indice offres'!F4 ->  | H39: ='Indice offres'!G4 ->  | I39: ='Indice offres'!H4 ->  | J39: ='Indice offres'!I4 ->  | K39: ='Indice offres'!J4 ->  | L39: ='Indice offres'!K4 ->  | M39: ='Indice offres'!L4 ->  | N39: ='Indice offres'!M4 ->  | O39: ='Indice offres'!N4 ->  | P39: ='Indice offres'!O4 ->  | Q39: ='Indice offres'!P4 -> 
B41: Indice EP: | C41: =IF(IF(SUM('Indice EP'!A3:O3)<>0,"% incorrects",SUMPRODUCT(C24:Q24,'Indice EP'!A2:O2))=0,"",IF(SUM('Indice EP'!A3:O3)<>0,"% incorrects",SUMPRODUCT(C24:Q24,'Indice EP'!A2:O2))) -> 
B43: Indice offres: | C43: =SUMPRODUCT(C24:Q24,'Indice offres'!B5:P5) -> 0.0
B45: Ct GRP net net indicé 2019: | C45: =IFERROR(C7*C19*C35*C41/1000000,"-") -> - | D45: sans indice offres
B46: Ct GRP net net indicé 2019: | C46: =IFERROR(C7*C19*C35*C41*C43/100000000,"-") -> - | D46: avec indice offres
B48: Ventilation * Indices | C48: du 1er janvier au 6 janvier | D48: du 7 janvier au 10 février | E48: du 11 février au 10 mars | F48: du 11 mars au 7 avril | G48: du 8 avril au 28 avril | H48: du 29 avril au 12 mai | I48: du 13 mai au 30 juin | J48: du 1er juillet au 14 juillet | K48: du 15 juillet au 28 juillet | L48: du 29 juillet au 18 août | M48: du 19 août au 1er septembre | N48: du 2 septembre au 20 octobre | O48: du 21 octobre au 3 novembre | P48: du 4 novembre au 22 décembre | Q48: du 23 décembre au 31 décembre
B49: Day | C49: =C$24*C28*Clusters!$V2*C$23/10000 -> 0.00 | D49: =D$24*D28*Clusters!$V2*D$23/10000 -> 0.00 | E49: =E$24*E28*Clusters!$V2*E$23/10000 -> 0.00 | F49: =F$24*F28*Clusters!$V2*F$23/10000 -> 0.00 | G49: =G$24*G28*Clusters!$V2*G$23/10000 -> 0.00 | H49: =H$24*H28*Clusters!$V2*H$23/10000 -> 0.00 | I49: =I$24*I28*Clusters!$V2*I$23/10000 -> 0.00 | J49: =J$24*J28*Clusters!$V2*J$23/10000 -> 0.00 | K49: =K$24*K28*Clusters!$V2*K$23/10000 -> 0.00 | L49: =L$24*L28*Clusters!$V2*L$23/10000 -> 0.00 | M49: =M$24*M28*Clusters!$V2*M$23/10000 -> 0.00 | N49: =N$24*N28*Clusters!$V2*N$23/10000 -> 0.00 | O49: =O$24*O28*Clusters!$V2*O$23/10000 -> 0.00 | P49: =P$24*P28*Clusters!$V2*P$23/10000 -> 0.00 | Q49: =Q$24*Q28*Clusters!$V2*Q$23/10000 -> 0.00
B50: Access | C50: =C$24*C29*Clusters!$V3*C$23/10000 -> 0.00 | D50: =D$24*D29*Clusters!$V3*D$23/10000 -> 0.00 | E50: =E$24*E29*Clusters!$V3*E$23/10000 -> 0.00 | F50: =F$24*F29*Clusters!$V3*F$23/10000 -> 0.00 | G50: =G$24*G29*Clusters!$V3*G$23/10000 -> 0.00 | H50: =H$24*H29*Clusters!$V3*H$23/10000 -> 0.00 | I50: =I$24*I29*Clusters!$V3*I$23/10000 -> 0.00 | J50: =J$24*J29*Clusters!$V3*J$23/10000 -> 0.00 | K50: =K$24*K29*Clusters!$V3*K$23/10000 -> 0.00 | L50: =L$24*L29*Clusters!$V3*L$23/10000 -> 0.00 | M50: =M$24*M29*Clusters!$V3*M$23/10000 -> 0.00 | N50: =N$24*N29*Clusters!$V3*N$23/10000 -> 0.00 | O50: =O$24*O29*Clusters!$V3*O$23/10000 -> 0.00 | P50: =P$24*P29*Clusters!$V3*P$23/10000 -> 0.00 | Q50: =Q$24*Q29*Clusters!$V3*Q$23/10000 -> 0.00
B51: Peak | C51: =C$24*C30*Clusters!$V4*C$23/10000 -> 0.00 | D51: =D$24*D30*Clusters!$V4*D$23/10000 -> 0.00 | E51: =E$24*E30*Clusters!$V4*E$23/10000 -> 0.00 | F51: =F$24*F30*Clusters!$V4*F$23/10000 -> 0.00 | G51: =G$24*G30*Clusters!$V4*G$23/10000 -> 0.00 | H51: =H$24*H30*Clusters!$V4*H$23/10000 -> 0.00 | I51: =I$24*I30*Clusters!$V4*I$23/10000 -> 0.00 | J51: =J$24*J30*Clusters!$V4*J$23/10000 -> 0.00 | K51: =K$24*K30*Clusters!$V4*K$23/10000 -> 0.00 | L51: =L$24*L30*Clusters!$V4*L$23/10000 -> 0.00 | M51: =M$24*M30*Clusters!$V4*M$23/10000 -> 0.00 | N51: =N$24*N30*Clusters!$V4*N$23/10000 -> 0.00 | O51: =O$24*O30*Clusters!$V4*O$23/10000 -> 0.00 | P51: =P$24*P30*Clusters!$V4*P$23/10000 -> 0.00 | Q51: =Q$24*Q30*Clusters!$V4*Q$23/10000 -> 0.00
B52: Night | C52: =C$24*C31*Clusters!$V5*C$23/10000 -> 0.00 | D52: =D$24*D31*Clusters!$V5*D$23/10000 -> 0.00 | E52: =E$24*E31*Clusters!$V5*E$23/10000 -> 0.00 | F52: =F$24*F31*Clusters!$V5*F$23/10000 -> 0.00 | G52: =G$24*G31*Clusters!$V5*G$23/10000 -> 0.00 | H52: =H$24*H31*Clusters!$V5*H$23/10000 -> 0.00 | I52: =I$24*I31*Clusters!$V5*I$23/10000 -> 0.00 | J52: =J$24*J31*Clusters!$V5*J$23/10000 -> 0.00 | K52: =K$24*K31*Clusters!$V5*K$23/10000 -> 0.00 | L52: =L$24*L31*Clusters!$V5*L$23/10000 -> 0.00 | M52: =M$24*M31*Clusters!$V5*M$23/10000 -> 0.00 | N52: =N$24*N31*Clusters!$V5*N$23/10000 -> 0.00 | O52: =O$24*O31*Clusters!$V5*O$23/10000 -> 0.00 | P52: =P$24*P31*Clusters!$V5*P$23/10000 -> 0.00 | Q52: =Q$24*Q31*Clusters!$V5*Q$23/10000 -> 0.00
I53: Données arrondies à l'euro. Le simulateur n’a en aucun cas une valeur contractuelle, toute demande de réservation sera soumise à la validation de NRJ GLOBAL.
